Cogmind - Beta 11 @@@ ROGUE MODE // 2022.04.14 @ 06:46:22 Player: Benkyo Result: Destroyed by 8R-AWN with 8R-AWN's Boregun Performance ------------- Evolutions (1) 500 Regions Visited (5) 1000 Robots Destroyed (84) 420 Value Destroyed (1692) 1692 Prototype IDs (28) 560 Alien Tech Used (0) 0 Bonus (-268) -268 TOTAL SCORE: 3904 Bonus ------- High Alert Combat Kills 19 Follower Combat Kills 219 Aligned with FarCom 300 Friendly Fire -806 Cogmind --------- Core Integrity 0/400 Matter 211/300 Energy 264/275 System Corruption 0% Temperature Cool (0) Movement Rolling (80) Location -9/Exiles Parts ------- > --- POWER (1) -------- Deuterium Engine > --- PROPULSION (2) --- Wheel Wheel > --- UTILITY (4) ------ Lightpack 2.0 Advanced Targeting Computer > --- WEAPON (2) ------- Maul Makeshift Sword > --- INVENTORY (40) --- Deuterium Engine Improved Heat Sink High-capacity Storage Unit Small Battery (100) Small Battery (100) Small Battery (100) Medium Battery (150) Medium Battery (150) Medium Battery (150) Small Matter Pod (50) Small Matter Pod (20) 0b10 Alert Chip Improved Medium Laser Beamcaster EM Pulse Cannon EM Pulse Cannon Heavy Assault Rifle Heavy Assault Rifle Heavy Assault Rifle Heavy Assault Rifle Rocket Launcher Peak State ------------ > --- POWER ------------ Deuterium Engine > --- PROPULSION ------- Wheel Wheel > --- UTILITY ---------- Lightpack 2.0 Advanced Targeting Computer > --- WEAPON ----------- Firepult > --- INVENTORY -------- Deuterium Engine Wheel Compact Wheel Improved Heat Sink Small Battery Small Battery Small Battery Medium Battery Medium Battery Medium Battery Small Matter Pod Small Matter Pod 0b10 Alert Chip Improved Medium Laser Beamcaster EM Pulse Cannon EM Pulse Cannon Heavy Assault Rifle Heavy Assault Rifle Heavy Assault Rifle Heavy Assault Rifle Rocket Launcher Maul Makeshift Sword [Rating: 63] Favorites ----------- Power Deuterium Engine Engine Deuterium Engine Propulsion Wheel Treads Light Treads Wheel Wheel Utility Huge Storage Unit Device Sensor Array Storage Huge Storage Unit Processor Signal Interpreter Protection Propulsion Shielding Weapon Heavy Assault Rifle Energy Gun Medium Laser Energy Cannon Firepult Ballistic Gun Heavy Assault Rifle Ballistic Cannon Light Cannon Launcher Grenade Launcher Impact Weapon Maul Slashing Weapon Makeshift Sword Build | -11 -10 -10 -9 -9 -9 ------- Run | Scr Mat Min Mat Min Exi Slots Evolved 2 | . . . 2 . . Power . | . . . . . . Propulsion . | . . . . . . Utility 2 | . . . 2 . . Weapon . | . . . . . . Parts Attached 63 | 7 18 4 25 . 9 Power 5 | 1 1 1 2 . . Engine 5 | 1 1 1 2 . . Core . | . . . . . . Reactor . | . . . . . . Propulsion 22 | 2 8 2 8 . 2 Treads 2 | . 2 . . . . Leg . | . . . . . . Wheel 20 | 2 6 2 8 . 2 Hover . | . . . . . . Flight . | . . . . . . Utility 16 | 2 3 . 9 . 2 Device 4 | 1 . . 3 . . Storage 4 | 1 1 . . . 2 Processor 3 | . 1 . 2 . . Hackware . | . . . . . . Protection 5 | . 1 . 4 . . Artifact . | . . . . . . Weapon 20 | 2 6 1 6 . 5 Energy Gun 2 | 1 1 . . . . Energy Cannon 1 | . . . . . 1 Ballistic Gun 13 | 1 3 1 6 . 2 Ballistic Cannon 1 | . 1 . . . . Launcher 1 | . 1 . . . . Special Weapon . | . . . . . . Impact Weapon 1 | . . . . . 1 Slashing Weapon 1 | . . . . . 1 Piercing Weapon . | . . . . . . Special Melee Weapon . | . . . . . . Unidentified Prototypes . | . . . . . . Parts Lost 13 | . 3 3 5 . 2 Power 1 | . . 1 . . . Propulsion 6 | . . 2 2 . 2 Utility 4 | . 1 . 3 . . Weapon 2 | . 2 . . . . Highest Loss Streak 3 | . 1 3 1 . 2 To Critical Strikes . | . . . . . . Average Slot Usage (%) 96 | . 99 99 98 100 86 Engine 11 | . 14 13 11 11 11 Wheel 23 | . 26 27 21 22 21 Device 7 | . 3 . 12 11 6 Storage 11 | . 14 14 11 11 10 Processor 10 | . 4 . 8 22 17 Protection 6 | . 5 14 11 . . Ballistic Gun 22 | . 24 28 22 22 15 Naked Turns . | . . . . . . Heaviest Build 103 | 15 90 88 103 96 96 Greatest Support 40 | 32 40 26 26 20 26 Greatest Overweight (x) 9 | 1 8 4 9 4 4 Average Overweight (x) 2 | . 2 3 3 4 2 Largest Inventory Capacity 40 | 8 25 25 25 25 40 Average Capacity 24 | 7 23 25 25 25 27 Most Carried 25 | 8 25 25 25 25 25 Average Carried 22 | 5 18 24 24 24 20 Final Capacity 40 | 8 25 25 25 25 40 Final Carried 25 | 8 23 25 25 25 21 Class Distribution -------------------- 51% | Mutant 42% | Scavenger-Mutant 6% | Hauler-Mutant Dominant Class ---------------- Mutant | -10/Materials Mutant | -10/Mines Scavenger-Mutant | -9/Materials Scavenger-Mutant | -9/Mines Scavenger-Mutant | -9/Exiles Resources | -11 -10 -10 -9 -9 -9 ----------- Run | Scr Mat Min Mat Min Exi Matter Collected 2249 | 299 408 390 1014 88 50 Remotely . | . . . . . . Salvage Created 2964 | 157 494 449 1442 329 93 Parts 195 | 9 43 25 100 18 . Haulers Intercepted 6 | . 2 . 4 . . Recyclers Shooed 4 | 1 1 1 1 . . Parts Field Recycled . | . . . . . . Retrieved Matter . | . . . . . . Parts Self-Destructed . | . . . . . . Prevented . | . . . . . . Kills | -11 -10 -10 -9 -9 -9 ------- Run | Scr Mat Min Mat Min Exi Combat Hostiles Destroyed 50 | . 14 7 24 3 2 Guns 41 | . 7 7 24 3 . Cannons 2 | . 2 . . . . AOE 5 | . 5 . . . . Classes Destroyed 11 | 2 5 1 2 . 1 Worker 10 | . 1 2 6 1 . Builder 1 | . . 1 . . . Tunneler 6 | 4 1 . . 1 . Hauler 6 | . 2 . 4 . . Recycler 6 | 1 . 2 1 2 . Watcher 7 | . 3 . 4 . . Swarmer 13 | . 6 3 4 . . Grunt 27 | . 8 4 13 2 . Brawler 2 | . . . 1 1 . Sentry 6 | . . . 6 . . Assembled 7 | . . . . . 7 Best Kill Streak 5 | 4 5 3 5 3 2 Combat Bots Only 5 | . 5 3 5 3 2 Max Kills in Single Turn 5 | 1 1 1 2 2 5 Gunslinging 1 | . . . 1 . . Exploded 1 | . 1 . . . . Melee . | . . . . . . Uniques/NPCs Destroyed . | . . . . . . Combat | -11 -10 -10 -9 -9 -9 -------- Run | Scr Mat Min Mat Min Exi Damage Taken 2838 | . 606 355 1354 46 477 Core 622 | . 134 76 313 . 99 Absorbed by Shields . | . . . . . . Redirected to Shielding 39 | . 9 26 4 . . Core Remaining (%) 58 | 100 . 16 . . . Volleys Fired 298 | 13 96 47 120 13 9 Largest 2 | 2 2 2 2 2 2 Hottest 250 | 70 70 40 46 46 250 Shots Fired 584 | 26 183 94 240 26 15 Gun 574 | 26 175 94 240 26 13 Cannon 5 | . 3 . . . 2 Launcher 5 | . 5 . . . . Special . | . . . . . . Kinetic 539 | 13 153 94 240 26 13 Thermal 40 | 13 25 . . . 2 Explosive 5 | . 5 . . . . Electromagnetic . | . . . . . . Robot Hit Streak 18 | 4 11 9 18 8 6 Robot Miss Streak 5 | 3 4 5 4 2 2 Penetration Max . | . . . . . . Secondary Targets 5 | . 1 2 2 . . Max Gunslinging Chain 1 | . 1 1 1 . . Shots Hit Robots 376 | 12 116 56 161 16 15 Core Hits 154 | 6 45 26 56 8 13 Critical Kills 1 | . . . 1 . . Critical Parts Destroyed 1 | . 1 . . . . Critical Strikes 3 | . 1 . 2 . . Destroy 3 | . 1 . 2 . . Melee Attacks 6 | . . . . . 6 Impact . | . . . . . . Slashing 6 | . . . . . 6 Piercing . | . . . . . . Sneak Attacks . | . . . . . . Combat Hostiles . | . . . . . . Follow-up Attacks . | . . . . . . Damage Inflicted 5402 | 162 1329 478 2594 254 585 Guns 4725 | 162 1064 478 2594 254 173 Cannons 85 | . 59 . . . 26 Explosions 526 | . 206 . . . 320 Melee 66 | . . . . . 66 Ramming . | . . . . . . Kinetic 4509 | 86 924 478 2594 254 173 Thermal 621 | 76 199 . . . 346 Explosive 206 | . 206 . . . . Electromagnetic . | . . . . . . Impact . | . . . . . . Slashing 66 | . . . . . 66 Piercing . | . . . . . . Highest Corruption 2 | . 2 2 . . . Average Corruption 2 | . 2 2 . . . Corruption Purged . | . . . . . . Corruption Blocked . | . . . . . . Effects 30 | . 21 9 . . . Message Errors 5 | . 3 2 . . . Matter Fused 7 | . 5 2 . . . Heat Flow Errors 5 | . 3 2 . . . Energy Discharges 5 | . 3 2 . . . Parts Rejected 1 | . 1 . . . . Data Loss (minor) 4 | . 3 1 . . . Alerts 1 | . 1 . . . . Weapon Failures 2 | . 2 . . . . Overload Shots . | . . . . . . Overflow Damage . | . . . . . . Projectiles . | . . . . . . Explosions . | . . . . . . Melee . | . . . . . . Knockbacks 1 | . 1 . . . . Impact . | . . . . . . Kinetic 1 | . 1 . . . . Secondary . | . . . . . . Self-Inflicted Damage 57 | . 57 . . . . Shots 2 | . 2 . . . . Rammed . | . . . . . . Targets Rammed . | . . . . . . Kicked . | . . . . . . Crushed . | . . . . . . Highest Temperature 412 | 54 217 240 62 . 412 Average Temperature 37 | 19 41 50 15 . 212 Received Heat Transfer 1011 | . 228 156 603 24 . Siege Activations . | . . . . . . Robots Corrupted . | . . . . . . Combat Hostiles . | . . . . . . Parts Fried . | . . . . . . Impact Corruptions . | . . . . . . Robots Melted 2 | . . . . . 2 Combat Hostiles 2 | . . . . . 2 Parts Melted 3 | 1 . . . . 2 Heat Transferred 2734 | 222 592 . . . 1920 Parts Sabotaged . | . . . . . . Parts Stolen . | . . . . . . Parts Stripped . | . . . . . . Power Chain Reactions . | . . . . . . Missiles Intercepted . | . . . . . . Alert | -11 -10 -10 -9 -9 -9 ------- Run | Scr Mat Min Mat Min Exi Peak Influence 510 | 25 373 126 510 146 . Initial 141 | . 16 6 3 141 . Average 149 | 8 140 49 225 84 . Maximum Alert Level 2 | . 1 . 2 . . Low Security (%) 70 | 100 65 100 50 100 . Level 1 23 | . 34 . 36 . . Level 2 5 | . . . 13 . . Level 3 . | . . . . . . Level 4 . | . . . . . . Level 5 . | . . . . . . High Security . | . . . . . . Max Security . | . . . . . . Squads Dispatched 4 | . 2 . 2 . . Investigation . | . . . . . . Extermination . | . . . . . . Reinforcement 4 | . 2 . 2 . . Assault . | . . . . . . Garrison . | . . . . . . Intercept . | . . . . . . Searches Triggered . | . . . . . . Construction Impeded . | . . . . . . Haulers Reinforced . | . . . . . . Active Scanning Responses . | . . . . . . Cargo Convoy Interrupts . | . . . . . . Stealth | -11 -10 -10 -9 -9 -9 --------- Run | Scr Mat Min Mat Min Exi Distress Signals 2 | . 1 . 1 . . Communications Jammed . | . . . . . . Distress Signals . | . . . . . . Times Spotted 96 | . 34 10 45 3 4 Peak Tracking Total 7 | . 7 3 5 3 5 Tactical Retreats 5 | . . . 4 . 1 Traps | -11 -10 -10 -9 -9 -9 ------- Run | Scr Mat Min Mat Min Exi Traps Triggered 1 | . 1 . . . . Indirectly . | . . . . . . Trap Hack Attempts . | . . . . . . Triggered . | . . . . . . Disarmed . | . . . . . . Reprogrammed . | . . . . . . Reused . | . . . . . . Traps Extracted . | . . . . . . Installed . | . . . . . . Triggered . | . . . . . . Machines | -11 -10 -10 -9 -9 -9 ---------- Run | Scr Mat Min Mat Min Exi Machines Disabled 5 | . 1 . 1 . 3 Max in Single Turn 3 | . 1 . 1 . 3 Machines Sabotaged . | . . . . . . Garrisons Compromised . | . . . . . . Overloaded Fab Kills . | . . . . . . Hacking | -11 -10 -10 -9 -9 -9 --------- Run | Scr Mat Min Mat Min Exi Machines Accessed 26 | . 8 1 12 . 5 Terminals 17 | . 6 1 10 . . Fabricators . | . . . . . . Repair Stations . | . . . . . . Recycling Units 4 | . 2 . 2 . . Scanalyzers . | . . . . . . Garrison Access . | . . . . . . Total Hacks 124 | . 28 3 43 . 50 Successful 95 | . 17 2 26 . 50 Failed 27 | . 10 1 16 . . Catastrophic 1 | . . . 1 . . Database Lockouts 2 | . 1 . 1 . . Manual 47 | . 15 3 28 . 1 Terminals 59 | . 21 3 35 . . Fabricators . | . . . . . . Repair Stations . | . . . . . . Recycling Units 15 | . 7 . 8 . . Scanalyzers . | . . . . . . Garrison Access . | . . . . . . Terminal Hacks 76 | . 8 2 16 . 50 Record 49 | . . . . . 49 Robot Analysis 7 | . 2 2 3 . . Prototype ID Bank 3 | . 3 . . . . Level Access Points 1 | . . . 1 . . Branch Access Points 1 | . . . 1 . . Emergency Access Points 1 | . . . 1 . . Terminal Index 1 | . . . 1 . . Unreport Threat 2 | . 1 . 1 . . Locate Traps 6 | . 1 . 5 . . Maintenance Status 1 | . . . 1 . . Hauler Manifests 2 | . 1 . 1 . . Zone Layout 1 | . . . 1 . . EX-Prototype ID Bank 1 | . . . . . 1 Fabricator Hacks . | . . . . . . Repair Station Hacks . | . . . . . . Recycling Unit Hacks 3 | . 2 . 1 . . Retrieve Components 3 | . 2 . 1 . . Scanalyzer . | . . . . . . Garrison Access Hacks . | . . . . . . Unauthorized Hacks 16 | . 7 . 9 . . Terminals 8 | . 3 . 5 . . Botnet 7 | . 3 . 4 . . Operators 1 | . . . 1 . . Fabricators . | . . . . . . Repair Stations . | . . . . . . Recycling Units 8 | . 4 . 4 . . Reject 3 | . 2 . 1 . . Recyclers 2 | . 1 . 1 . . Mask 3 | . 1 . 2 . . Scanalyzers . | . . . . . . Garrison Access . | . . . . . . Data Cores Recovered . | . . . . . . Used . | . . . . . . Hacking Detections 17 | . 6 1 10 . . Full Trace Events 1 | . . 1 . . . Feedback Events . | . . . . . . Feedback Blocked . | . . . . . . Robot Schematics Acquired . | . . . . . . Robots Built . | . . . . . . Authchips . | . . . . . . Time . | . . . . . . Total Robot Build Rating . | . . . . . . Part Schematics Acquired . | . . . . . . Parts Built . | . . . . . . Authchips . | . . . . . . Time . | . . . . . . Total Part Build Rating . | . . . . . . Parts Repaired . | . . . . . . Time . | . . . . . . Parts Recycled . | . . . . . . Recycled Matter . | . . . . . . Retrieved Matter . | . . . . . . Retrieved Components 22 | . 12 . 10 . . Parts Scanalyzed . | . . . . . . Part Schematics Acquired . | . . . . . . Parts Damaged . | . . . . . . Bothacking | -11 -10 -10 -9 -9 -9 ------------ Run | Scr Mat Min Mat Min Exi Used RIF Installer . | . . . . . . Robots Hacked . | . . . . . . Non-combat . | . . . . . . Combat . | . . . . . . Robot Hacks Applied . | . . . . . . Relay Couplers Released . | . . . . . . Fabnet Peak Effective % . | . . . . . . Robots Rewired . | . . . . . . Allies Hacked . | . . . . . . Hacks Repelled . | . . . . . . Allies | -11 -10 -10 -9 -9 -9 -------- Run | Scr Mat Min Mat Min Exi Total Allies 1 | . . 1 . . . Largest Group 1 | . . 1 1 . . Highest-Rated Group 31 | . . 31 31 . . Highest-Rated Ally 31 | . . 31 31 . . Total Orders . | . . . . . . Ally Attacks 22 | . . 8 14 . . Total Damage 365 | . . 129 236 . . Kills 7 | . . 3 4 . . Allies Corrupted . | . . . . . . Allies Melted . | . . . . . . Intel | -11 -10 -10 -9 -9 -9 ------- Run | Scr Mat Min Mat Min Exi Robot Analysis Total 7 | . 2 2 3 . . Derelict Logs Recovered 2 | . . 1 . 1 . Drone Launches . | . . . . . . Drone Recoveries . | . . . . . . Exploration | -11 -10 -10 -9 -9 -9 ------------- Run | Scr Mat Min Mat Min Exi Turns Passed 6897 | 121 1374 886 2312 894 1310 Spaces Moved 4286 | 60 763 540 1228 606 1089 Core 3 | 3 . . . . . Treads 10 | . 10 . . . . Legs . | . . . . . . Wheels 4273 | 57 753 540 1228 606 1089 Hover . | . . . . . . Flight . | . . . . . . Fastest Speed 50 | 50 100 135 135 140 80 Average Speed 130 | 99 132 136 138 140 111 Slowest Speed 320 | 100 320 140 215 140 140 Overloaded Moves . | . . . . . . Propulsion Burnouts . | . . . . . . Robots Hopped . | . . . . . . Cave-ins Triggered . | . . . . . . Exploration Rate (%) 79 | 4 99 99 98 97 80 Regions Visited 5 Branch Regions 3 Pre-discovered Areas 1 | . . . . . 1 Known Exits Taken 3 | . . 1 1 1 . Unknown Exits Taken 2 | 1 1 . . . . Scrap Searched 4 | . . 3 . 1 . Spaces Dug . | . . . . . . Terrain Destroyed 33 | . 25 . . . 8 Melee . | . . . . . . Projectile . | . . . . . . AOE 33 | . 25 . . . 8 Terrain Rammed . | . . . . . . Walls Destroyed . | . . . . . . Machines Disabled . | . . . . . . Actions | -11 -10 -10 -9 -9 -9 --------- Run | Scr Mat Min Mat Min Exi Total 5101 | 95 965 616 1632 627 1166 Wait 270 | 1 47 15 184 5 18 Move 4281 | 59 762 539 1227 605 1089 Hop . | . . . . . . Pick Up 115 | 15 29 8 38 2 23 Fast Attach 3 | . . . 2 . 1 Attach 26 | 7 4 3 7 . 5 Detach 3 | . . . 1 . 2 Swap 34 | . 14 1 16 . 3 Drop 65 | . 13 3 37 2 10 Fire 298 | 13 96 47 120 13 9 Melee 6 | . . . . . 6 Ram . | . . . . . . Kick . | . . . . . . Crush . | . . . . . . Escape Stasis . | . . . . . . Rewire . | . . . . . . Trap . | . . . . . . Miscellaneous . | . . . . . . Route ------- -11/Scrapyard -10/Materials (discovered 4 exits: *Mat x3 / *Min) -10/Mines (discovered 2 exits: *Mat x2) -9/Materials (discovered 4 exits: *Mat x3 / *Min) -9/Mines (discovered 4 exits: *Mat x2 / *Exi / *Zio) -9/Exiles (discovered 1 exit: *Min) History --------- Turn | Location | Event 21 | -11/Scrapyard | Discovered new exit (range 15) 122 | -11/Scrapyard | Entered Materials 306 | -10/Materials | Build established: Mutant 443 | -10/Materials | Discovered new exit (range 7) 542 | -10/Materials | Discovered new exit (range 15) 805 | -10/Materials | Discovered new exit (range 11) 850 | -10/Materials | Central database locked down 922 | -10/Materials | Core integrity fell below 50% 996 | -10/Materials | Discovered new exit (range 6) 1496 | -10/Materials | Entered Mines 1789 | -10/Mines | Lost 3 parts (1p2n) 1843 | -10/Mines | Escorted by a lone wolf Derelict 1997 | -10/Mines | Discovered new exit (range 9) 2103 | -10/Mines | Found a hidden stash of uninstalled traps 2155 | -10/Mines | Identified exit to Materials 2199 | -10/Mines | Core integrity fell below 20% 2382 | -10/Mines | Entered Materials 2382 | -9/Materials | Accompanied by 1 ally 2382 | -9/Materials | Evolved 2 slots: Utility x2 2604 | -9/Materials | Identified exit to Mines 2693 | -9/Materials | Central database locked down 2868 | -9/Materials | Discovered new exit (range 4) 2907 | -9/Materials | Identified exit to Materials 3669 | -9/Materials | Build established: Scavenger-Mutant 4016 | -9/Materials | Core integrity fell below 50% 4694 | -9/Materials | Entered Mines 4723 | -9/Mines | Learned 2 Materials zone layouts 4909 | -9/Mines | Discovered exit to Materials (range 11) 5066 | -9/Mines | Deemed a non-threat by the Exiles lab entrance 5102 | -9/Mines | YI-UF0 nonchalantly dropped a Grenade Launcher on the ground 5152 | -9/Mines | A Derelict revealed a hidden shortcut to a safe place 5155 | -9/Mines | Identified exit to Zion 5210 | -9/Mines | Discovered exit to Materials (range 7) 5378 | -9/Mines | A weapon hastily lodged in a ceiling crevice suddenly fell to the ground 5583 | -9/Mines | Discovered new exit (range 5) 5587 | -9/Mines | Identified exit to Exiles 5588 | -9/Mines | Entered Exiles 5622 | -9/Exiles | Met 8R-AWN 5646 | -9/Exiles | Met EX-HEX 5740 | -9/Exiles | Met EX-DEC 5795 | -9/Exiles | Visited The Gauntlet 5867 | -9/Exiles | Learned location of Zion (-7) 5903 | -9/Exiles | Met EX-BIN 6124 | -9/Exiles | Discovered new exit (range 12) 6136 | -9/Exiles | Identified exit to Mines 6257 | -9/Exiles | Aligned with FarCom system 6259 | -9/Exiles | Given EX-Vault access code 6284 | -9/Exiles | Opened EX-Vault 6311 | -9/Exiles | Warned to stay clear of 0b10 Research branches 6463 | -9/Exiles | Found Lightpack 2.0 6466 | -9/Exiles | Found Firepult 6468 | -9/Exiles | Found 0b10 Alert Chip 6750 | -9/Exiles | Build established: Hauler-Mutant 6829 | -9/Exiles | Attacked by the Exiles 6875 | -9/Exiles | Core integrity fell below 20% 6898 | -9/Exiles | Destroyed by 8R-AWN with 8R-AWN's Boregun Last Messages --------------- 06874_ Penetrated by HV Slug. 06874_ HV Slug penetrates Wall. 06876_ Penetrated by HV Slug. 06876_ HV Slug penetrates Wall. 06876_ Penetrated by HV Slug. 06876_ Wheel destroyed. 06876_ HV Slug penetrates Wall. 06879_ Wall collapses. 06880_ Penetrated by HV Slug. 06880_ HV Slug penetrates FarCom Aligner. 06880_ HV Slug penetrates Machine. 06882_ Penetrated by HV Slug. 06882_ HV Slug penetrates FarCom Aligner. 06882_ HV Slug penetrates Wall. 06882_ HV Slug penetrates Earth. 06884_ Penetrated by HV Slug. 06884_ HV Slug penetrates FarCom Aligner. 06884_ Penetrated by HV Slug. 06895_ Com. Wheel destroyed. 06895_ Penetrated by HV Slug. Map ----- +----------------------------------------------------+ | ???#""""""## #?#########?????????????????????? | | ???##"###### #?#"""""""#?????????????????????? | | ??? "?????# #?#"""""""#?????????????????????? | | ??"""??????# #?#"""""""#?????????????????????? | | ??"""?????## ###"" """"#?????????????????????? | | ??????????#" """"#?????????????????????? | | ??????????#" """#?????????????????????? | | ??????????#" """#?????????????????????? | | ??????????#" " "#?????????????????????? | | ###???????#" " "#?????????????????????? | | ""#???????#" " "#?????????????????????? | | ""#???????## " """????????????????????? | | #????????# " "#?????????????????????? | | #????????#" "X" " """????????????????????? | | "#????????#" """ #?????????????????????? | | ""#????????#" """"""" "#?????????????????????? | | ""#???????##" ########;##?????????????????????? | | ###??????##"" #??????# #???###????????????????? | | ###?######"" #??????# #??# ?????????????????? | | #"###""""""" ##?????# #?# #??????????????????? | | """""" " "" ##???##;##;#####???????????????? | | "" """ " #####" " """"##??????????????? | | " " " """"##?????????????? | | ] " " #?????????????? | | " """#?????????????? | | @ "a"#???????????### | | g " "##?????????##" | | ""###???????#" | | """""" """#??????##" | | ######""" "#????### | | ""##????#####""" ##???# | | """##?????????##""" ##?## | | """##???????????#"""" ### | | ""#???????????##"" ## | | ########??####"""" ### | | ## ####""" ""#?# | | """" #"""##?# | | ######??? | | % ##???????? | | ##????????? | | " "" ""#?????????? | | ""## ##""" " " #" "##?????????? | | ""#### ######""" """##"""""""##??????????? | | """"##??# #????###""""###########???????????? | | """#??## ####???######?????????????????????? | | ""##??#! "!#??????????????????????????????? | | """##???#" !#??????????????????????????????? | | ##????#" "#??????????????????????????????? | | ##?????# ""!"#??????????????????????????????? | | #??????########??????????????????????????????? | +----------------------------------------------------+ Best States ------------- Heat Dissipation 42 Energy Generation 14 Energy Capacity 275 Matter Stores 300 Matter Capacity 300 Sight Range 16 Robot Scan Range 14 Terrain Scan Range 16 Terrain Scan Density 10 Armor Coverage 300 Resistance: TH 10 Propulsion Shielding 33 Evasion (%) 44 Targeting Accuracy 8 Recoil Reduction 2 Authchip Count 5 Item Schematics ----------------- None Robot Schematics ------------------ None Fabricated ------------ Nothing Alien Tech Used ----------------- None Achievements -------------- None Challenges ------------ None Game ------ Seed GyrokineticArcSegregator Manual? 0 Play Time 01:30:11 Cumulative 84.3 hours Start 2022.04.13 @ 14:47:55 End 2022.04.14 @ 06:46:22 Sessions 3 Manual Loads 0 Difficulty Rogue Special Mode None Game No. 16 Rogue 9 Adventurer 1 Explorer 6 Win Type - Total 3 Types 1/1/1/0/0/0/0/0/0 Lore% 61 Gallery% 53 Achievement% 58 Wizard Run 0 Options --------- ASCII 0 Keyboard 0 Movement Mouse Keybinds 0 Fullscreen 1 Font 18/SmallcapsGlow Map View 76x50 Tactical HUD 1 Map Filters NONE Filters NONE Steam 1 RUN: 04b6e998-de71-47a6-9500-8eec39e9d110